bitfinex/quotes_BTCUSD_20251001
["timestamp","ask_amount","ask_price","bid_price","bid_amount"]
[1759288049855,0.04988866,114280.0,114270.0,8.1279563]
[1759288050557,0.04988866,114280.0,114270.0,7.0599563]
[1759288050768,0.04988866,114280.0,114270.0,8.1279563]
[1759288052250,0.05185866,114280.0,114270.0,7.0599563]
[1759288052474,0.05480866,114280.0,114270.0,8.0369963]
[1759288052694,0.05185866,114280.0,114270.0,8.1279563]
[1759288052898,0.04988866,114280.0,114270.0,8.1279563]
[1759288053997,0.04988866,114280.0,114270.0,7.0599563]
[1759288054119,0.04988866,114280.0,114270.0,8.1279563]
[1759288054679,0.04988866,114280.0,114270.0,7.0599563]
[1759288054910,0.04988866,114280.0,114270.0,8.0369963]
[1759288055123,0.05185866,114280.0,114270.0,8.1279563]
[1759288055553,0.05185866,114280.0,114270.0,7.6731563]
[1759288055768,0.05185866,114280.0,114270.0,8.1279563]
[1759288056351,0.05185866,114280.0,114270.0,8.0369963]
[1759288056478,0.05185866,114280.0,114270.0,8.1279563]
[1759288056668,0.05185866,114280.0,114270.0,7.0599563]
[1759288056878,0.05480866,114280.0,114270.0,8.1279563]
[1759288057534,0.05185866,114280.0,114270.0,8.1279563]
[1759288057840,0.05185866,114280.0,114270.0,8.19074916]
[1759288058965,0.04988866,114280.0,114270.0,8.19074916]
[1759288059419,0.04988866,114280.0,114270.0,7.12274916]
[1759288059624,0.04988866,114280.0,114270.0,8.19074916]
[1759288060837,0.22686741,114280.0,114270.0,6.6077251]
[1759288061044,0.22686741,114280.0,114270.0,7.7879563]
[1759288061045,0.22981741,114280.0,114270.0,7.7879563]
[1759288061178,0.04988866,114280.0,114270.0,7.7879563]
[1759288062363,0.05185866,114280.0,114270.0,7.7879563]
[1759288062716,0.04988866,114280.0,114270.0,7.7879563]
[1759288062924,0.02362974,114280.0,114270.0,8.19074916]
[1759288068977,0.02362974,114280.0,114270.0,8.21700751]
[1759288074104,0.02362974,114280.0,114270.0,7.14900751]
[1759288074312,0.02362974,114280.0,114270.0,8.21696751]
[1759288074507,0.02859974,114280.0,114270.0,8.21696751]
[1759288075056,0.02859974,114280.0,114270.0,7.14900751]
[1759288075264,0.02859974,114280.0,114270.0,8.19070916]
[1759288075867,0.20360849,114280.0,114270.0,7.12274916]
[1759288076008,0.02362974,114280.0,114270.0,8.19070916]
[1759288080048,0.02362974,114280.0,114270.0,8.28009463]
[1759288080261,0.02362974,114280.0,114270.0,8.23790768]
[1759288080461,0.02362974,114280.0,114270.0,8.07983539]
[1759288080658,0.02362974,114280.0,114270.0,7.01187539]
[1759288080864,0.02362974,114280.0,114270.0,7.33968647]
[1759288082034,0.02362974,114280.0,114270.0,7.09036647]
[1759288082653,0.02362974,114280.0,114270.0,7.33964647]
[1759288083081,0.02362974,114280.0,114270.0,7.09036647]
[1759288083286,0.02362974,114280.0,114270.0,7.33964647]
[1759288084486,0.02362974,114280.0,114270.0,7.09036647]
[1759288084748,0.02362974,114280.0,114270.0,7.33964647]
[1759288087341,0.02362974,114280.0,114270.0,8.32188647]
[1759288087753,0.02362974,114280.0,114270.0,7.09036647]
[1759288087963,0.02362974,114280.0,114270.0,8.15816647]
[1759288089520,0.02362974,114280.0,114270.0,7.43056647]
[1759288092682,0.02362974,114280.0,114270.0,7.33964647]
[1759288094506,0.02362974,114280.0,114270.0,7.39479837]
[1759288094631,0.02362974,114280.0,114270.0,7.48692837]
[1759288094840,0.02362974,114280.0,114270.0,7.39479837]
[1759288095045,0.0004,114310.0,114270.0,7.39479837]
[1759288095257,0.00044656,114310.0,114300.0,0.17497812]
[1759288095537,0.00044656,114310.0,114300.0,6.79957959]
[1759288095739,0.00044656,114310.0,114300.0,6.82452959]
[1759288095888,0.00044656,114310.0,114300.0,7.42452959]
[1759288096097,0.00044656,114310.0,114300.0,7.48728414]
[1759288096317,0.00044656,114310.0,114300.0,7.42452959]
[1759288096522,0.00044656,114310.0,114300.0,7.82728414]
[1759288096717,0.00044656,114310.0,114300.0,7.79077632]
[1759288096943,0.00044656,114310.0,114300.0,7.85849527]
[1759288097280,0.02341656,114310.0,114300.0,8.90330863]
[1759288097480,0.02341656,114310.0,114300.0,7.67054863]
[1759288097679,0.02341656,114310.0,114300.0,7.6443019]
[1759288097897,0.02341656,114310.0,114300.0,8.3496219]
[1759288098740,0.02341656,114310.0,114300.0,7.6443019]
[1759288098913,0.02341656,114310.0,114300.0,7.9858219]
[1759288099818,0.02341656,114310.0,114300.0,7.8948619]
[1759288100896,0.02341656,114310.0,114300.0,7.6443019]
[1759288101104,0.02341656,114310.0,114300.0,7.8947819]
[1759288101312,0.02341656,114310.0,114300.0,7.6443019]
[1759288101504,0.02341656,114310.0,114300.0,7.8948619]
[1759288101711,0.02341656,114310.0,114300.0,7.6443019]
[1759288101921,0.02341656,114310.0,114300.0,7.8948619]
[1759288102551,0.02341656,114310.0,114300.0,7.8949019]
[1759288103080,0.02341656,114310.0,114300.0,7.6443019]
[1759288103291,0.02341656,114310.0,114300.0,7.8948619]
[1759288103506,0.02341656,114310.0,114300.0,7.6443019]
[1759288103934,0.02341656,114310.0,114300.0,7.8948619]
[1759288104746,0.02877656,114310.0,114300.0,7.6443019]
[1759288104950,0.02877656,114310.0,114300.0,6.64160854]
[1759288105157,0.02877656,114310.0,114300.0,6.89220854]
[1759288105369,0.02877656,114310.0,114300.0,6.98160854]
[1759288105575,0.02877656,114310.0,114300.0,6.80282307]
[1759288105782,0.02877656,114310.0,114300.0,7.14282307]
[1759288107241,0.02877656,114310.0,114300.0,8.12482307]
[1759288107633,0.02341656,114310.0,114300.0,8.12482307]
[1759288112296,0.02341656,114310.0,114300.0,7.90870436]
[1759288112498,0.02341656,114310.0,114300.0,8.08368207]
[1759288115301,0.02341656,114310.0,114300.0,8.17306754]
[1759288116521,0.02341656,114310.0,114300.0,8.47306754]
[1759288116990,0.02341656,114310.0,114300.0,8.30942754]
[1759288117258,0.02341656,114310.0,114300.0,8.19268681]
[1759288117466,0.02341656,114310.0,114300.0,8.5358009]
[1759288118361,0.02341656,114310.0,114300.0,8.3721209]
[1759288119669,0.02341656,114310.0,114300.0,7.94805502]
[1759288120033,0.02341656,114310.0,114300.0,7.62755859]
[1759288120732,0.02341656,114310.0,114300.0,7.69415972]
[1759288120935,0.02341656,114310.0,114300.0,7.94443972]
[1759288121114,0.02341656,114310.0,114300.0,7.21699972]
[1759288121276,0.02341656,114310.0,114300.0,7.12607972]
[1759288122362,0.02341656,114310.0,114300.0,7.18877308]
[1759288122499,0.02341656,114310.0,114300.0,6.93849308]
[1759288122700,0.02877656,114310.0,114300.0,6.93849308]
[1759288122913,0.02877656,114310.0,114300.0,7.12607972]
[1759288123320,0.02877656,114310.0,114300.0,6.87579972]
[1759288123548,0.02877656,114310.0,114300.0,7.12607972]
[1759288123885,0.02555656,114310.0,114300.0,7.12607972]
[1759288124074,0.02341656,114310.0,114300.0,7.12607972]
[1759288125869,0.02341656,114310.0,114300.0,6.87579972]
[1759288126068,0.02341656,114310.0,114300.0,7.12603972]
[1759288127356,0.02341656,114310.0,114300.0,8.10803972]
[1759288128008,0.02341656,114310.0,114300.0,7.03943972]
[1759288128284,0.02341656,114310.0,114300.0,8.10791972]
[1759288128502,0.02341656,114310.0,114300.0,8.12852563]
[1759288128728,0.02341656,114310.0,114300.0,7.27953308]
[1759288128998,0.02341656,114310.0,114300.0,7.30577893]
[1759288129207,0.02341656,114310.0,114300.0,6.96473893]
[1759288129409,0.02341656,114310.0,114300.0,7.21489893]
[1759288130000,0.02341656,114310.0,114300.0,7.15216557]
[1759288130247,0.02341656,114310.0,114300.0,7.23065665]
[1759288130477,0.02341656,114310.0,114300.0,6.98053665]
[1759288130662,0.02341656,114310.0,114300.0,7.23061665]
[1759288130885,0.02341656,114310.0,114300.0,7.15212557]
[1759288131293,0.02540656,114310.0,114300.0,6.90204557]
[1759288131497,0.02841656,114310.0,114300.0,7.12587972]
[1759288131706,0.02341656,114310.0,114300.0,7.12587972]
[1759288132887,0.02341656,114310.0,114300.0,6.87579972]
[1759288133095,0.02341656,114310.0,114300.0,7.12587972]
[1759288135854,0.02341656,114310.0,114300.0,6.87579972]
[1759288136049,0.02341656,114310.0,114300.0,7.12599972]
[1759288136405,0.02341656,114310.0,114300.0,7.2044908]
[1759288137263,0.02341656,114310.0,114300.0,8.1864108]
[1759288138096,0.02341656,114310.0,114300.0,7.6590908]
[1759288138323,0.02341656,114310.0,114300.0,7.2954108]
[1759288138699,0.02341656,114310.0,114300.0,7.2044908]
[1759288139324,0.02341656,114310.0,114300.0,7.12599972]
[1759288139526,0.02540656,114310.0,114300.0,7.20441031]
[1759288139734,0.02341656,114310.0,114300.0,7.20441031]
[1759288140375,0.02540656,114310.0,114300.0,7.20441031]
[1759288140580,0.02341656,114310.0,114300.0,7.20441031]
[1759288140935,0.02341656,114310.0,114300.0,6.95433031]
[1759288141136,0.02341656,114310.0,114300.0,7.20441031]
[1759288141893,0.02341656,114310.0,114300.0,6.95433031]
[1759288142051,0.02341656,114310.0,114300.0,7.20441031]
[1759288143400,0.02341656,114310.0,114300.0,6.97207513]
[1759288144552,0.02341656,114310.0,114300.0,6.72199513]
[1759288144961,0.02341656,114310.0,114300.0,6.97195513]
[1759288146271,0.02341656,114310.0,114300.0,6.90910272]
[1759288147157,0.02341656,114310.0,114300.0,7.07274272]
[1759288147427,0.02341656,114310.0,114300.0,7.89102272]
[1759288149446,0.02341656,114310.0,114300.0,6.82278272]
[1759288149589,0.02341656,114310.0,114300.0,7.89094272]
[1759288152290,0.02341656,114310.0,114300.0,7.64106272]
[1759288152291,0.02841656,114310.0,114300.0,7.64106272]
[1759288152538,0.02841656,114310.0,114300.0,7.49915159]
[1759288152741,0.02841656,114310.0,114300.0,7.95375159]
[1759288152950,0.02341656,114310.0,114300.0,7.95375159]
[1759288153461,0.02341656,114310.0,114300.0,7.89086272]
[1759288155591,0.02341656,114310.0,114300.0,7.36354272]
[1759288156192,0.02341656,114310.0,114300.0,6.90894272]
[1759288156397,0.02341656,114310.0,114300.0,6.98747331]
[1759288157204,0.02341656,114310.0,114300.0,7.87847331]
[1759288157404,0.02341656,114310.0,114300.0,7.96939331]
[1759288158018,0.02341656,114310.0,114300.0,7.99563935]
[1759288158390,0.02341656,114310.0,114300.0,7.83199935]
[1759288158592,0.02341656,114310.0,114300.0,7.01371935]
[1759288160003,0.02341656,114310.0,114300.0,7.04387125]
[1759288160208,0.02341656,114310.0,114300.0,6.96534066]
[1759288161325,0.02341656,114310.0,114300.0,6.71554066]
[1759288161528,0.02341656,114310.0,114300.0,6.96518066]
[1759288161732,0.02341656,114310.0,114300.0,6.71554066]
[1759288162098,0.02341656,114310.0,114300.0,6.96514066]
[1759288167149,0.02341656,114310.0,114300.0,7.85614066]
[1759288167516,0.02341656,114310.0,114300.0,7.94706066]
[1759288168598,0.02341656,114310.0,114300.0,6.87918066]
[1759288168744,0.02341656,114310.0,114300.0,7.32862066]
[1759288168950,0.02341656,114310.0,114300.0,7.41954066]
[1759288171963,0.02341656,114310.0,114300.0,7.05586066]
[1759288172404,0.02341656,114310.0,114300.0,6.71554066]
[1759288172640,0.02341656,114310.0,114300.0,6.96490066]
[1759288173088,0.02341656,114310.0,114300.0,6.98990066]
[1759288173223,0.02341656,114310.0,114300.0,7.06848577]
[1759288173444,0.02341656,114310.0,114300.0,6.81912577]
[1759288173746,0.02341656,114310.0,114300.0,7.06848577]
[1759288176199,0.02341656,114310.0,114300.0,6.98990066]
[1759288176405,0.02341656,114310.0,114300.0,7.06848389]
[1759288177295,0.02341656,114310.0,114300.0,8.05040389]
[1759288177691,0.02341656,114310.0,114300.0,6.98276389]
[1759288177896,0.02341656,114310.0,114300.0,8.05040389]
[1759288178732,0.02341656,114310.0,114300.0,7.52308389]
[1759288179254,0.02341656,114310.0,114300.0,7.44450066]
[1759288180354,0.02341656,114310.0,114300.0,7.08082066]
[1759288180549,0.02341656,114310.0,114300.0,6.98990066]
[1759288181587,0.02341656,114310.0,114300.0,7.06848582]
[1759288181905,0.02341656,114310.0,114300.0,6.81912582]
[1759288182191,0.02341656,114310.0,114300.0,7.06848582]
[1759288183469,0.02265556,114310.0,114300.0,7.06848582]
[1759288183695,0.02265556,114310.0,114300.0,7.15912582]
[1759288183896,0.02265556,114310.0,114300.0,7.40848582]
[1759288184296,0.02265556,114310.0,114300.0,7.15912582]
[1759288184507,0.02265556,114310.0,114300.0,7.40848582]
[1759288185663,0.02265556,114310.0,114300.0,7.15912582]
[1759288185871,0.02265556,114310.0,114300.0,7.40848582]
[1759288186297,0.02265556,114310.0,114300.0,7.1307183]
[1759288186471,0.02265556,114310.0,114300.0,7.30569642]
[1759288186824,0.02265556,114310.0,114300.0,7.05633642]
[1759288187048,0.02265556,114310.0,114300.0,7.30569642]
[1759288187382,0.02265556,114310.0,114300.0,8.28761642]
[1759288187554,0.02265556,114310.0,114300.0,8.30267644]
[1759288188897,0.02265556,114310.0,114300.0,8.13903644]
[1759288189103,0.02265556,114310.0,114300.0,7.77535644]
[1759288189840,0.02265556,114310.0,114300.0,7.49956068]
[1759288190815,0.02265556,114310.0,114300.0,7.04496068]
[1759288196491,0.02769556,114310.0,114300.0,6.74044878]
[1759288196696,0.02769556,114310.0,114300.0,7.04044878]
[1759288196967,0.02769556,114310.0,114300.0,7.28976878]
[1759288197106,0.02769556,114310.0,114300.0,7.45340878]
[1759288197289,0.02769556,114310.0,114300.0,8.27168878]
[1759288197860,0.02769556,114310.0,114300.0,7.81708878]
[1759288198015,0.02769556,114310.0,114300.0,8.27168878]
[1759288201356,0.02265556,114310.0,114300.0,8.27168878]
[1759288202516,0.02265556,114310.0,114300.0,8.35035219]
[1759288203810,0.02265556,114310.0,114300.0,7.11911219]
[1759288203964,0.02769556,114310.0,114300.0,7.82303219]
[1759288204514,0.02265556,114310.0,114300.0,7.74436878]
[1759288206194,0.02469556,114310.0,114300.0,7.74436878]
[1759288206394,0.02769556,114310.0,114300.0,7.74436878]
[1759288206731,0.02469556,114310.0,114300.0,7.74436878]
[1759288206928,0.02769556,114310.0,114300.0,7.57371397]
[1759288207194,0.02769556,114310.0,114300.0,8.27168878]
[1759288208136,0.02769556,114310.0,114300.0,8.18076878]
[1759288208372,0.02769556,114310.0,114300.0,7.20408878]
[1759288209048,0.02769556,114310.0,114300.0,8.27168878]
[1759288211109,0.02769556,114310.0,114300.0,7.17784274]
[1759288211293,0.02769556,114310.0,114300.0,8.24544274]
[1759288211498,0.02769556,114310.0,114300.0,8.30831633]
[1759288214756,0.02769556,114310.0,114300.0,6.94071633]
[1759288214943,0.20265838,114310.0,114300.0,7.91897086]
[1759288216127,0.02769556,114310.0,114300.0,7.91897086]
[1759288218541,0.02769556,114310.0,114300.0,6.60126314]
[1759288218750,0.02769556,114310.0,114300.0,7.66890314]
[1759288219317,0.20265838,114310.0,114300.0,6.60126314]
[1759288219721,0.20265838,114310.0,114300.0,7.66894314]
[1759288221498,0.20265838,114310.0,114300.0,6.60126314]
[1759288221705,0.20265838,114310.0,114300.0,6.42628502]
[1759288221913,0.20265838,114310.0,114300.0,7.49400502]
[1759288222121,0.20265838,114310.0,114300.0,7.55935931]
[1759288222623,0.20265838,114310.0,114300.0,7.73433743]
[1759288224244,0.20265838,114310.0,114300.0,6.66661743]
[1759288224417,0.20265838,114310.0,114300.0,7.73433743]
[1759288232962,0.02769556,114310.0,114300.0,7.73433743]
[1759288233648,0.20265838,114310.0,114300.0,7.73433743]
[1759288233856,0.02769556,114310.0,114300.0,7.73433743]
[1759288234244,0.20265838,114310.0,114300.0,7.73433743]
[1759288235113,0.02769556,114310.0,114300.0,7.73433743]
[1759288235319,0.20265838,114310.0,114300.0,7.73433743]
[1759288235539,0.20265838,114310.0,114300.0,6.66661743]
[1759288235727,0.02769556,114310.0,114300.0,7.73433743]
[1759288236473,0.02769556,114310.0,114300.0,7.79721102]
[1759288238104,0.20265838,114310.0,114300.0,7.79721102]
[1759288239085,0.02769556,114310.0,114300.0,7.79721102]
[1759288239285,0.02749556,114310.0,114300.0,7.79721102]
[1759288240230,0.20245838,114310.0,114300.0,7.79721102]
[1759288240872,0.02749556,114310.0,114300.0,7.79721102]
[1759288241493,0.02245556,114310.0,114300.0,7.79721102]
[1759288243157,0.02459556,114310.0,114300.0,7.79721102]
[1759288245254,0.0004,114340.0,114310.0,0.64]
[1759288245457,0.00044656,114340.0,114330.0,0.2378058]
[1759288245699,0.00044656,114340.0,114330.0,6.1453908]
[1759288246039,0.00565656,114340.0,114330.0,7.2369008]
[1759288246180,0.00565656,114340.0,114330.0,7.26314431]
[1759288246379,0.00565656,114340.0,114330.0,6.13259072]
[1759288246587,0.00258656,114340.0,114330.0,7.20027072]
[1759288246786,0.00565656,114340.0,114330.0,7.20027072]
[1759288247161,0.00565656,114340.0,114330.0,7.36395072]
[1759288247577,0.03034656,114340.0,114330.0,7.36395072]
[1759288247789,0.03034656,114340.0,114330.0,6.29627072]
[1759288248199,0.03034656,114340.0,114330.0,7.36395072]
[1759288248609,0.03034656,114340.0,114330.0,6.90931072]
[1759288248847,0.03034656,114340.0,114330.0,7.36395072]
[1759288250640,0.03034656,114340.0,114330.0,7.42865805]
[1759288251541,0.03034656,114340.0,114330.0,6.36097805]
[1759288251737,0.03034656,114340.0,114330.0,7.42861805]
[1759288252341,0.02727656,114340.0,114330.0,7.42861805]
[1759288252550,0.03030656,114340.0,114330.0,7.42861805]
[1759288254474,0.20522347,114340.0,114330.0,6.36097805]
[1759288254697,0.03030656,114340.0,114330.0,7.42853805]
[1759288254885,0.02727656,114340.0,114330.0,7.42853805]
[1759288256085,0.02513656,114340.0,114330.0,7.42853805]
[1759288258448,0.02513656,114340.0,114330.0,6.36097805]
[1759288258604,0.02513656,114340.0,114330.0,7.42853805]
[1759288260304,0.02513656,114340.0,114330.0,7.67757805]
[1759288260482,0.02513656,114340.0,114330.0,7.83137164]
[1759288261059,0.02513656,114340.0,114330.0,7.92075711]
[1759288262471,0.02513656,114340.0,114330.0,6.68955711]
[1759288262682,0.02513656,114340.0,114330.0,7.75707711]
[1759288263105,0.02513656,114340.0,114330.0,6.68955711]
[1759288263415,0.02513656,114340.0,114330.0,6.93879711]
[1759288266817,0.02513656,114340.0,114330.0,7.23879711]
[1759288267056,0.02513656,114340.0,114330.0,7.17592352]
[1759288267260,0.02513656,114340.0,114330.0,8.15772352]
[1759288267466,0.0004,114350.0,114340.0,0.81491691]
[1759288267676,0.0004,114350.0,114340.0,7.1237829]
[1759288267803,0.0004,114350.0,114340.0,7.1478129]
[1759288268218,0.0004,114350.0,114340.0,7.15183153]
[1759288269964,0.0004,114350.0,114340.0,7.18198343]
[1759288271078,0.0004,114350.0,114340.0,6.57008791]
[1759288271283,0.0004,114350.0,114340.0,6.81928791]
[1759288272034,0.0004,114350.0,114340.0,6.88194343]
[1759288272501,0.0004,114350.0,114340.0,6.81928791]
[1759288273621,0.02793863,114360.0,114350.0,0.81490161]
[1759288273827,0.00401863,114360.0,114350.0,7.06107208]
[1759288274037,0.00401863,114360.0,114350.0,6.83590208]
[1759288274237,0.00401863,114360.0,114350.0,7.08510208]
[1759288274418,0.00401863,114360.0,114350.0,7.11133556]
[1759288275002,0.00401863,114360.0,114350.0,7.11129556]
[1759288277164,0.00401863,114360.0,114350.0,7.27489556]
[1759288277322,0.00401863,114360.0,114350.0,7.92929556]
[1759288277525,0.00401863,114360.0,114350.0,6.86213556]
[1759288277730,0.00401863,114360.0,114350.0,7.56573556]
[1759288277943,0.00401863,114360.0,114350.0,6.86213556]
[1759288278320,0.00401863,114360.0,114350.0,7.11129556]
[1759288281001,0.00401863,114360.0,114350.0,7.17395108]
[1759288281391,0.00401863,114360.0,114350.0,6.92479108]
[1759288281817,0.00901863,114360.0,114350.0,7.17391108]
[1759288282016,0.00598863,114360.0,114350.0,7.17391108]
[1759288282260,0.00401863,114360.0,114350.0,6.92479108]
[1759288282577,0.00401863,114360.0,114350.0,7.17391108]
[1759288282753,0.00401863,114360.0,114350.0,6.92479108]
[1759288282955,0.00401863,114360.0,114350.0,7.17391108]
[1759288285173,0.00401863,114360.0,114350.0,6.92479108]
[1759288285412,0.00401863,114360.0,114350.0,7.17391108]
[1759288285815,0.00598863,114360.0,114350.0,7.17391108]
[1759288286257,0.00401863,114360.0,114350.0,7.17391108]
[1759288287321,0.00401863,114360.0,114350.0,8.15543108]
[1759288287680,0.00401863,114360.0,114350.0,7.99183108]
[1759288288348,0.00401863,114360.0,114350.0,6.92479108]
[1759288288562,0.00401863,114360.0,114350.0,7.26479108]
[1759288289391,0.00401863,114360.0,114350.0,7.20213556]
[1759288290455,0.00401863,114360.0,114350.0,7.11125556]
[1759288290657,0.00401863,114360.0,114350.0,7.11121556]
[1759288294483,0.00598863,114360.0,114350.0,7.11121556]
[1759288294687,0.00401863,114360.0,114350.0,6.86213556]
[1759288294875,0.00901863,114360.0,114350.0,7.11121556]
[1759288295742,0.00401863,114360.0,114350.0,7.11121556]
[1759288297380,0.00901863,114360.0,114350.0,8.09269556]
[1759288297590,0.00901863,114360.0,114350.0,7.92913556]
[1759288297790,0.00598863,114360.0,114350.0,7.92913556]
[1759288297990,0.00401863,114360.0,114350.0,7.92913556]
[1759288299629,0.00401863,114360.0,114350.0,8.00780075]
[1759288301521,0.00401863,114360.0,114350.0,7.28076075]
[1759288305068,0.00401863,114360.0,114350.0,7.18988075]
[1759288307218,0.00401863,114360.0,114350.0,8.17136075]
[1759288309325,0.00401863,114360.0,114350.0,7.64428075]
[1759288310947,0.00401863,114360.0,114350.0,7.41369867]
[1759288311173,0.00401863,114360.0,114350.0,7.50993509]
[1759288311629,0.00401863,114360.0,114350.0,7.22561556]
[1759288313283,0.00401863,114360.0,114350.0,6.86209556]
[1759288313427,0.00401863,114360.0,114350.0,7.20209556]
[1759288314143,0.00401863,114360.0,114350.0,7.11121556]
[1759288317174,0.00401863,114360.0,114350.0,7.27477556]
[1759288317308,0.00401863,114360.0,114350.0,7.63825556]
[1759288317515,0.00401863,114360.0,114350.0,7.92909556]
[1759288319256,0.00401863,114360.0,114350.0,6.86213556]
[1759288319558,0.00401863,114360.0,114350.0,7.20205556]
[1759288320147,0.00401863,114360.0,114350.0,7.11117556]
[1759288321520,0.02432,114370.0,114360.0,0.51488632]
[1759288321725,0.0004,114370.0,114360.0,6.85493411]
[1759288321934,0.0004,114370.0,114360.0,6.87990411]
[1759288322914,0.0004,114370.0,114360.0,6.63086411]
[1759288323119,0.0004,114370.0,114360.0,6.87990411]
[1759288324029,0.0004,114370.0,114360.0,6.89592504]
[1759288324205,0.00086557,114370.0,114360.0,6.89592504]
[1759288325394,0.00086557,114370.0,114360.0,6.96189437]
[1759288327279,0.00086557,114370.0,114360.0,7.94337437]
[1759288327528,0.00086557,114370.0,114360.0,7.96832437]
[1759288327958,0.00086557,114370.0,114360.0,7.88965918]
[1759288328387,0.00086557,114370.0,114360.0,7.96832437]
[1759288329750,0.00086557,114370.0,114360.0,6.90136437]
[1759288329954,0.00086557,114370.0,114360.0,7.96828437]
[1759288330772,0.00086557,114370.0,114360.0,6.90136437]
[1759288330987,0.00606557,114370.0,114360.0,7.96828437]
[1759288331293,0.00606557,114370.0,114360.0,6.90136437]
[1759288331507,0.00282557,114370.0,114360.0,7.96828437]
[1759288331822,0.00086557,114370.0,114360.0,7.96828437]
[1759288332747,0.00086557,114370.0,114360.0,6.90136437]
[1759288332960,0.00086557,114370.0,114360.0,7.96828437]
[1759288333163,0.00086557,114370.0,114360.0,6.90136437]
[1759288333424,0.00086557,114370.0,114360.0,7.96828437]
[1759288333723,0.00086557,114370.0,114360.0,6.90136437]
[1759288333927,0.00086557,114370.0,114360.0,7.96828437]
[1759288334626,0.00086557,114370.0,114360.0,6.90136437]
[1759288334835,0.00086557,114370.0,114360.0,7.96828437]
[1759288335431,0.00086557,114370.0,114360.0,6.90136437]
[1759288335631,0.00086557,114370.0,114360.0,7.96828437]
[1759288335866,0.00086557,114370.0,114360.0,6.90136437]
[1759288336069,0.00086557,114370.0,114360.0,7.96828437]
[1759288336434,0.00086557,114370.0,114360.0,7.96824437]
[1759288339206,0.00086557,114370.0,114360.0,6.90136437]
[1759288339355,0.00086557,114370.0,114360.0,7.96824437]
[1759288341459,0.00086557,114370.0,114360.0,6.90136437]
[1759288341666,0.00086557,114370.0,114360.0,7.96824437]
[1759288341890,0.00302557,114370.0,114360.0,7.96824437]
[1759288342096,0.00086557,114370.0,114360.0,7.96824437]
[1759288342807,0.00086557,114370.0,114360.0,6.90136437]
[1759288343076,0.00086557,114370.0,114360.0,7.87736437]
[1759288343213,0.00086557,114370.0,114360.0,7.96824437]
[1759288344476,0.00302557,114370.0,114360.0,6.90136437]
[1759288344683,0.00623557,114370.0,114360.0,7.96824437]
[1759288345323,0.00086557,114370.0,114360.0,7.96824437]
[1759288345621,0.00086557,114370.0,114360.0,6.90136437]
[1759288345770,0.00086557,114370.0,114360.0,7.96824437]
[1759288354932,0.00086557,114370.0,114360.0,7.80468437]
[1759288355101,0.02495,114380.0,114370.0,0.51487103]
[1759288355300,0.00048138,114380.0,114370.0,6.83940741]
[1759288355507,0.00048138,114380.0,114370.0,6.86378741]
[1759288355813,0.00048138,114380.0,114370.0,6.61836486]
[1759288356071,0.00048138,114380.0,114370.0,6.86728486]
[1759288356716,0.00048138,114380.0,114370.0,6.61836486]
[1759288356919,0.00048138,114380.0,114370.0,6.86728486]
[1759288357347,0.00048138,114380.0,114370.0,6.78192486]
[1759288357530,0.00048138,114380.0,114370.0,7.84872486]
[1759288358570,0.00048138,114380.0,114370.0,6.61836486]
[1759288358780,0.00048138,114380.0,114370.0,6.86724486]
[1759288359490,0.02357946,114390.0,114380.0,0.51485574]
[1759288359695,0.00012946,114390.0,114380.0,6.76070621]
[1759288359931,0.00012946,114390.0,114380.0,6.78508621]
[1759288360818,0.00012946,114390.0,114380.0,6.53620621]
[1759288361048,0.00221946,114390.0,114380.0,6.78508621]
[1759288361257,0.00012946,114390.0,114380.0,6.78508621]
[1759288362672,0.00012946,114390.0,114380.0,6.53620621]
[1759288362787,0.00012946,114390.0,114380.0,6.78508621]
[1759288364157,0.00012946,114390.0,114380.0,6.53620621]
[1759288364330,0.00012946,114390.0,114380.0,6.78504621]
[1759288365021,0.00012946,114390.0,114380.0,6.53620621]
[1759288365205,0.00012946,114390.0,114380.0,6.78504621]
[1759288366000,0.00012946,114390.0,114380.0,6.72108128]
[1759288366634,0.00012946,114390.0,114380.0,6.47224128]
[1759288366791,0.00543946,114390.0,114380.0,6.72108128]
[1759288367168,0.00012946,114390.0,114380.0,7.70244128]
[1759288368806,0.00012946,114390.0,114380.0,6.63580128]
[1759288369037,0.00221946,114390.0,114380.0,7.70244128]
[1759288369215,0.00543946,114390.0,114380.0,7.70244128]
[1759288369358,0.00221946,114390.0,114380.0,7.70244128]
[1759288369946,0.00012946,114390.0,114380.0,7.70244128]
[1759288374208,0.00216946,114390.0,114380.0,7.70244128]
[1759288374462,0.00534946,114390.0,114380.0,7.70244128]
[1759288374880,0.00216946,114390.0,114380.0,7.70244128]
[1759288375491,0.00012946,114390.0,114380.0,7.70244128]
[1759288379798,0.00012946,114390.0,114380.0,6.63580128]
[1759288379999,0.00216946,114390.0,114380.0,7.24804128]
[1759288380237,0.00216946,114390.0,114380.0,7.70236128]
[1759288381368,0.00534946,114390.0,114380.0,6.63580128]
[1759288381546,0.00534946,114390.0,114380.0,7.61152128]
[1759288381758,0.00534946,114390.0,114380.0,7.70236128]
[1759288381906,0.00534946,114390.0,114380.0,6.63580128]
[1759288382121,0.00534946,114390.0,114380.0,7.70236128]
[1759288382813,0.00534946,114390.0,114380.0,6.63580128]
[1759288383058,0.00534946,114390.0,114380.0,7.70236128]
[1759288383233,0.00534946,114390.0,114380.0,6.63580128]
[1759288383439,0.00534946,114390.0,114380.0,7.70236128]
[1759288384607,0.00534946,114390.0,114380.0,7.78100719]
[1759288387719,0.00534946,114390.0,114380.0,7.80723785]
[1759288389915,0.00534946,114390.0,114380.0,7.78100719]
[1759288390638,0.00534946,114390.0,114380.0,7.80723785]
[1759288396396,0.00534946,114390.0,114380.0,7.78100719]
[1759288396767,0.00534946,114390.0,114380.0,7.80723785]
[1759288400375,0.00534946,114390.0,114380.0,7.55847785]
[1759288400578,0.18018991,114390.0,114380.0,7.61289581]
[1759288401744,0.00534946,114390.0,114380.0,7.61289581]
[1759288402160,0.18018991,114390.0,114380.0,7.61289581]
[1759288405729,0.18018991,114390.0,114380.0,7.43804007]
[1759288406366,0.18018991,114390.0,114380.0,7.61289581]
[1759288406784,0.18018991,114390.0,114380.0,7.43804007]
[1759288407129,0.18018991,114390.0,114380.0,7.50092306]
[1759288407336,0.18018991,114390.0,114380.0,7.6757788]
[1759288411386,0.18018991,114390.0,114380.0,7.33686074]
[1759288412674,0.18018991,114390.0,114380.0,7.162005]
[1759288412981,0.18018991,114390.0,114380.0,7.33686074]
[1759288414146,0.18018991,114390.0,114380.0,7.502005]
[1759288414351,0.18018991,114390.0,114380.0,7.67686074]
[1759288414560,0.18018991,114390.0,114380.0,6.095525]
[1759288414772,0.18018991,114390.0,114380.0,7.161965]
[1759288414926,0.20642337,114390.0,114380.0,7.33682074]
[1759288415834,0.20642337,114390.0,114380.0,7.501965]
[1759288416036,0.20642337,114390.0,114380.0,7.67682074]
[1759288416440,0.20642337,114390.0,114380.0,7.501965]
[1759288421495,0.20642337,114390.0,114380.0,6.095525]
[1759288421700,0.20642337,114390.0,114380.0,1.59434]
[1759288426361,0.20642337,114390.0,114380.0,1.06644]
[1759288426570,0.22901337,114390.0,114380.0,1.06644]
[1759288427987,0.17485574,114380.0,114370.0,0.16356]
[1759288428157,0.17485574,114380.0,114370.0,7.137665]